[Event "Early-Titled-Tuesday-Blitz-January-30-2024"]
[Site "Chess.com"]
[Date "2024.01.30"]
[Round "6"]
[White "Let_it_be_1"]
[Black "Alexchess1984"]
[Result "0-1"]
[WhiteElo "2571"]
[BlackElo "2746"]
[TimeControl "180+1"]
[EndTime "9:08:51 PST"]
[Termination "Alexchess1984 won by checkmate"]

1. e4 {[%clk 0:03:00.9]} 1... c5 {[%clk 0:02:58.3]} 2. Nf3 {[%clk 0:03:00.8]}
2... Nc6 {[%clk 0:02:58.9]} 3. d4 {[%clk 0:03:01.1]} 3... cxd4 {[%clk
0:02:59.8]} 4. Nxd4 {[%clk 0:03:01.6]} 4... e5 {[%clk 0:02:59.2]} 5. Nb5 {[%clk
0:03:01.9]} 5... d6 {[%clk 0:02:59.3]} 6. Bc4 {[%clk 0:03:02.1]} 6... a6 {[%clk
0:02:55.4]} 7. N5c3 {[%clk 0:03:02.3]} 7... Nf6 {[%clk 0:02:54]} 8. Bg5 {[%clk
0:03:01.9]} 8... Be7 {[%clk 0:02:53.7]} 9. Bxf6 {[%clk 0:03:01.5]} 9... Bxf6
{[%clk 0:02:54.1]} 10. O-O {[%clk 0:03:01.2]} 10... O-O {[%clk 0:02:54.5]} 11.
a4 {[%clk 0:03:00.7]} 11... Be6 {[%clk 0:02:53]} 12. Bd5 {[%clk 0:03:00.7]}
12... Rc8 {[%clk 0:02:51.8]} 13. Na3 {[%clk 0:03:00.2]} 13... Nd4 {[%clk
0:02:47.9]} 14. Qd3 {[%clk 0:02:59.4]} 14... Qc7 {[%clk 0:02:37.3]} 15. Rfd1
{[%clk 0:02:30.5]} 15... Rfd8 {[%clk 0:02:20.8]} 16. h3 {[%clk 0:02:25.5]} 16...
g6 {[%clk 0:02:12.3]} 17. Ba2 {[%clk 0:02:03.1]} 17... Bg5 {[%clk 0:01:37.3]}
18. Nd5 {[%clk 0:01:54.4]} 18... Bxd5 {[%clk 0:01:21.1]} 19. Bxd5 {[%clk
0:01:54]} 19... Nxc2 {[%clk 0:01:19.1]} 20. Nxc2 {[%clk 0:01:22.5]} 20... Qxc2
{[%clk 0:01:20]} 21. Bxb7 {[%clk 0:01:20.7]} 21... Qxd3 {[%clk 0:01:18.6]} 22.
Rxd3 {[%clk 0:01:20]} 22... Rc4 {[%clk 0:01:04.1]} 23. Bxa6 {[%clk 0:00:50.9]}
23... Rxe4 {[%clk 0:01:02.5]} 24. Bb7 {[%clk 0:00:49.3]} 24... Rb4 {[%clk
0:01:01.7]} 25. Bd5 {[%clk 0:00:48.8]} 25... e4 {[%clk 0:00:53.7]} 26. Rc3
{[%clk 0:00:36.6]} 26... Rd7 {[%clk 0:00:37]} 27. a5 {[%clk 0:00:33.3]} 27...
Kg7 {[%clk 0:00:27.4]} 28. a6 {[%clk 0:00:29.4]} 28... Ra7 {[%clk 0:00:27]} 29.
Rc8 {[%clk 0:00:27.1]} 29... e3 {[%clk 0:00:24.7]} 30. Ra8 {[%clk 0:00:17.1]}
30... Rxa8 {[%clk 0:00:20.3]} 31. Bxa8 {[%clk 0:00:16.7]} 31... Rxb2 {[%clk
0:00:20.2]} 32. fxe3 {[%clk 0:00:13.6]} 32... Bxe3+ {[%clk 0:00:20]} 33. Kh1
{[%clk 0:00:14.1]} 33... Ba7 {[%clk 0:00:20]} 34. Rd1 {[%clk 0:00:11.2]} 34...
Bc5 {[%clk 0:00:17.3]} 35. Bb7 {[%clk 0:00:10.3]} 35... Ra2 {[%clk 0:00:16.7]}
36. Rf1 {[%clk 0:00:08.6]} 36... f5 {[%clk 0:00:16.4]} 37. Re1 {[%clk
0:00:08.2]} 37... Kf6 {[%clk 0:00:16.7]} 38. Re8 {[%clk 0:00:07.5]} 38... h5
{[%clk 0:00:15.9]} 39. h4 {[%clk 0:00:05.7]} 39... Ra1+ {[%clk 0:00:14.6]} 40.
Kh2 {[%clk 0:00:05.1]} 40... Bg1+ {[%clk 0:00:14.8]} 41. Kg3 {[%clk 0:00:04.9]}
41... Ra3+ {[%clk 0:00:14.2]} 42. Kf4 {[%clk 0:00:04.1]} 42... Bh2+ {[%clk
0:00:13.4]} 43. g3 {[%clk 0:00:04]} 43... Bxg3# {[%clk 0:00:13.3]} 0-1

[Event "Early-Titled-Tuesday-Blitz-January-30-2024"]
[Site "Chess.com"]
[Date "2024.01.30"]
[Round "6"]
[White "ansko1999"]
[Black "yobdc"]
[Result "0-1"]
[WhiteElo "2687"]
[BlackElo "2569"]
[TimeControl "180+1"]
[EndTime "9:08:53 PST"]
[Termination "yobdc won on time"]

1. e4 {[%clk 0:03:00.9]} 1... c5 {[%clk 0:02:58.8]} 2. Nf3 {[%clk 0:03:01]} 2...
Nf6 {[%clk 0:02:57.9]} 3. Nc3 {[%clk 0:02:54.8]} 3... d5 {[%clk 0:02:55.9]} 4.
exd5 {[%clk 0:02:52.4]} 4... Nxd5 {[%clk 0:02:56]} 5. Bb5+ {[%clk 0:02:51.6]}
5... Bd7 {[%clk 0:02:56.3]} 6. Bc4 {[%clk 0:02:48.3]} 6... Nb6 {[%clk
0:02:42.7]} 7. Be2 {[%clk 0:02:44.1]} 7... Nc6 {[%clk 0:02:42.1]} 8. d4 {[%clk
0:02:39]} 8... cxd4 {[%clk 0:02:36]} 9. Nxd4 {[%clk 0:02:39.9]} 9... g6 {[%clk
0:02:17.1]} 10. Bf3 {[%clk 0:02:34.2]} 10... Bg7 {[%clk 0:02:16.5]} 11. Nxc6
{[%clk 0:02:33.1]} 11... Bxc6 {[%clk 0:02:16.4]} 12. Bxc6+ {[%clk 0:02:29.2]}
12... bxc6 {[%clk 0:02:16.4]} 13. Qf3 {[%clk 0:02:28.2]} 13... Nd5 {[%clk
0:02:04.1]} 14. Ne4 {[%clk 0:02:21.2]} 14... Rb8 {[%clk 0:01:48.7]} 15. O-O
{[%clk 0:02:09.9]} 15... O-O {[%clk 0:01:48.2]} 16. Rd1 {[%clk 0:02:04.8]} 16...
Qc7 {[%clk 0:01:38.3]} 17. c4 {[%clk 0:01:58.4]} 17... Nb4 {[%clk 0:01:34.9]}
18. Qe2 {[%clk 0:01:48.3]} 18... Rfd8 {[%clk 0:01:31.4]} 19. Be3 {[%clk
0:01:30.5]} 19... Rxd1+ {[%clk 0:01:28.9]} 20. Qxd1 {[%clk 0:01:19.9]} 20...
Bxb2 {[%clk 0:01:20.2]} 21. Rb1 {[%clk 0:01:20.1]} 21... Be5 {[%clk 0:01:20.3]}
22. Qa4 {[%clk 0:01:05.4]} 22... a5 {[%clk 0:01:11.8]} 23. Nc5 {[%clk
0:00:56.8]} 23... Bxh2+ {[%clk 0:00:45]} 24. Kh1 {[%clk 0:00:56.9]} 24... Rd8
{[%clk 0:00:39.2]} 25. a3 {[%clk 0:00:40.5]} 25... Nd3 {[%clk 0:00:39.3]} 26.
Rb7 {[%clk 0:00:19.9]} 26... Nxc5 {[%clk 0:00:27.3]} 27. Rxc7 {[%clk 0:00:13.3]}
27... Nxa4 {[%clk 0:00:27.3]} 28. Rxc6 {[%clk 0:00:11.3]} 28... Bd6 {[%clk
0:00:15.9]} 29. Ra6 {[%clk 0:00:10.2]} 29... Rc8 {[%clk 0:00:14.1]} 30. Rxa5
{[%clk 0:00:09]} 30... Rxc4 {[%clk 0:00:13.9]} 31. g3 {[%clk 0:00:08.9]} 31...
f5 {[%clk 0:00:14.1]} 32. Bh6 {[%clk 0:00:08.4]} 32... Kf7 {[%clk 0:00:14.3]}
33. Ra8 {[%clk 0:00:08.3]} 33... Nc5 {[%clk 0:00:14.2]} 34. Rh8 {[%clk
0:00:08.1]} 34... Ra4 {[%clk 0:00:14.1]} 35. Rxh7+ {[%clk 0:00:08.2]} 35... Ke6
{[%clk 0:00:14.5]} 36. Bc1 {[%clk 0:00:07.1]} 36... Nd3 {[%clk 0:00:14.1]} 37.
Be3 {[%clk 0:00:05.1]} 37... Rxa3 {[%clk 0:00:13.6]} 38. Rg7 {[%clk 0:00:05.6]}
38... Ra2 {[%clk 0:00:12.6]} 39. Rxg6+ {[%clk 0:00:05.3]} 39... Kf7 {[%clk
0:00:13]} 40. Rg5 {[%clk 0:00:04.9]} 40... e6 {[%clk 0:00:12.2]} 41. Kg2 {[%clk
0:00:04.3]} 41... Bc5 {[%clk 0:00:11.5]} 42. Bxc5 {[%clk 0:00:03.3]} 42... Nxc5
{[%clk 0:00:11.7]} 43. g4 {[%clk 0:00:03.2]} 43... Rxf2+ {[%clk 0:00:11.3]} 44.
Kxf2 {[%clk 0:00:01.7]} 44... Ne4+ {[%clk 0:00:11.6]} 45. Ke3 {[%clk 0:00:02.3]}
45... Nxg5 {[%clk 0:00:12.2]} 0-1

[Event "Early-Titled-Tuesday-Blitz-January-30-2024"]
[Site "Chess.com"]
[Date "2024.01.30"]
[Round "6"]
[White "GiorgianBarbosa"]
[Black "shirovin"]
[Result "1-0"]
[WhiteElo "2486"]
[BlackElo "2051"]
[TimeControl "180+1"]
[EndTime "9:08:53 PST"]
[Termination "GiorgianBarbosa won on time"]

1. e4 {[%clk 0:03:00.6]} 1... c5 {[%clk 0:02:59.2]} 2. Nf3 {[%clk 0:02:59.6]}
2... e6 {[%clk 0:02:59.8]} 3. b3 {[%clk 0:02:59.1]} 3... b6 {[%clk 0:02:58.2]}
4. Bb2 {[%clk 0:02:59.1]} 4... Bb7 {[%clk 0:02:58.8]} 5. e5 {[%clk 0:02:58.9]}
5... Ne7 {[%clk 0:02:58.2]} 6. Na3 {[%clk 0:02:58.7]} 6... Ng6 {[%clk
0:02:54.3]} 7. Nc4 {[%clk 0:02:57.8]} 7... Be7 {[%clk 0:02:48]} 8. a4 {[%clk
0:02:56.5]} 8... Qc7 {[%clk 0:02:46.6]} 9. g3 {[%clk 0:02:51.2]} 9... Nc6 {[%clk
0:02:40.9]} 10. Bg2 {[%clk 0:02:37.4]} 10... O-O {[%clk 0:02:29.9]} 11. O-O
{[%clk 0:02:33.5]} 11... a6 {[%clk 0:02:29.2]} 12. h4 {[%clk 0:01:56.1]} 12...
b5 {[%clk 0:02:19]} 13. Ne3 {[%clk 0:01:45.2]} 13... Rab8 {[%clk 0:02:03.7]} 14.
axb5 {[%clk 0:01:11]} 14... axb5 {[%clk 0:02:00.7]} 15. h5 {[%clk 0:01:11.4]}
15... Ngxe5 {[%clk 0:01:59.4]} 16. Nxe5 {[%clk 0:01:03]} 16... Nxe5 {[%clk
0:01:58.8]} 17. Ra7 {[%clk 0:01:03.1]} 17... d5 {[%clk 0:01:28.2]} 18. h6 {[%clk
0:00:52.1]} 18... Bf6 {[%clk 0:01:18.2]} 19. hxg7 {[%clk 0:00:50.2]} 19... Bxg7
{[%clk 0:01:17.3]} 20. Ng4 {[%clk 0:00:44.8]} 20... Nxg4 {[%clk 0:01:06.3]} 21.
Qxg4 {[%clk 0:00:45.7]} 21... d4 {[%clk 0:01:06.2]} 22. c3 {[%clk 0:00:38]}
22... e5 {[%clk 0:00:49.2]} 23. cxd4 {[%clk 0:00:33.2]} 23... exd4 {[%clk
0:00:43.3]} 24. b4 {[%clk 0:00:31]} 24... Qb6 {[%clk 0:00:33.2]} 25. Rxb7 {[%clk
0:00:30.1]} 25... Rxb7 {[%clk 0:00:32.2]} 26. bxc5 {[%clk 0:00:29.1]} 26... Qa6
{[%clk 0:00:17.8]} 27. Bxb7 {[%clk 0:00:25.1]} 27... Qxb7 {[%clk 0:00:17]} 28.
Bxd4 {[%clk 0:00:25.3]} 28... f5 {[%clk 0:00:16.5]} 29. Qxg7+ {[%clk 0:00:21.4]}
29... Qxg7 {[%clk 0:00:15.7]} 30. Bxg7 {[%clk 0:00:22.1]} 30... Kxg7 {[%clk
0:00:16.4]} 31. d4 {[%clk 0:00:21.8]} 31... Rd8 {[%clk 0:00:15.6]} 32. Rd1
{[%clk 0:00:19.9]} 32... b4 {[%clk 0:00:14.8]} 33. d5 {[%clk 0:00:19.5]} 33...
b3 {[%clk 0:00:14.9]} 34. d6 {[%clk 0:00:19.2]} 34... b2 {[%clk 0:00:13]} 35.
Rb1 {[%clk 0:00:18.3]} 35... Rc8 {[%clk 0:00:11.8]} 36. d7 {[%clk 0:00:16.4]}
36... Ra8 {[%clk 0:00:07.8]} 37. Rxb2 {[%clk 0:00:15.5]} 37... Ra1+ {[%clk
0:00:05.7]} 38. Kg2 {[%clk 0:00:15.4]} 38... Rd1 {[%clk 0:00:06.3]} 39. c6
{[%clk 0:00:15.6]} 39... Kf7 {[%clk 0:00:05.4]} 40. c7 {[%clk 0:00:15.8]} 40...
Rxd7 {[%clk 0:00:04]} 41. c8=Q {[%clk 0:00:16]} 1-0

[Event "Early-Titled-Tuesday-Blitz-January-30-2024"]
[Site "Chess.com"]
[Date "2024.01.30"]
[Round "6"]
[White "Muslim_player_05"]
[Black "Veleamater"]
[Result "1-0"]
[WhiteElo "2505"]
[BlackElo "2326"]
[TimeControl "180+1"]
[EndTime "9:08:55 PST"]
[Termination "Muslim_player_05 won on time"]

1. d4 {[%clk 0:03:00.9]} 1... d6 {[%clk 0:03:00.2]} 2. e4 {[%clk 0:02:59.9]}
2... g6 {[%clk 0:03:00.7]} 3. c4 {[%clk 0:02:59.3]} 3... Bg7 {[%clk 0:03:01.2]}
4. Nc3 {[%clk 0:02:59.8]} 4... Nf6 {[%clk 0:03:01.5]} 5. f3 {[%clk 0:02:59]}
5... O-O {[%clk 0:03:02]} 6. Be3 {[%clk 0:02:59.2]} 6... Nc6 {[%clk 0:03:02.7]}
7. Qd2 {[%clk 0:02:58]} 7... e5 {[%clk 0:03:03.2]} 8. d5 {[%clk 0:02:56.7]} 8...
Nd4 {[%clk 0:03:02.4]} 9. Nge2 {[%clk 0:02:56.7]} 9... c5 {[%clk 0:02:57.9]} 10.
dxc6 {[%clk 0:02:56.2]} 10... bxc6 {[%clk 0:02:45]} 11. Nxd4 {[%clk 0:02:56.1]}
11... exd4 {[%clk 0:02:44]} 12. Bxd4 {[%clk 0:02:57]} 12... Re8 {[%clk
0:02:37.1]} 13. Be2 {[%clk 0:02:53.7]} 13... Be6 {[%clk 0:02:28]} 14. O-O {[%clk
0:02:48.2]} 14... Qa5 {[%clk 0:02:12.2]} 15. Rfd1 {[%clk 0:02:36.3]} 15... d5
{[%clk 0:02:02.8]} 16. cxd5 {[%clk 0:01:46.9]} 16... cxd5 {[%clk 0:01:53]} 17.
e5 {[%clk 0:01:46.6]} 17... Nd7 {[%clk 0:01:48.6]} 18. f4 {[%clk 0:01:46]} 18...
Rab8 {[%clk 0:01:38.6]} 19. b3 {[%clk 0:01:39.5]} 19... h5 {[%clk 0:01:31.7]}
20. Bf3 {[%clk 0:01:38.7]} 20... Rbc8 {[%clk 0:01:21.9]} 21. Nxd5 {[%clk
0:01:35.6]} 21... Qxd2 {[%clk 0:01:21.6]} 22. Rxd2 {[%clk 0:01:36.2]} 22... g5
{[%clk 0:01:13.2]} 23. g3 {[%clk 0:01:23.2]} 23... g4 {[%clk 0:01:06]} 24. Bg2
{[%clk 0:01:20.4]} 24... h4 {[%clk 0:01:00.4]} 25. Rad1 {[%clk 0:01:14.5]} 25...
h3 {[%clk 0:00:59.5]} 26. Bh1 {[%clk 0:01:07]} 26... Bf8 {[%clk 0:00:59.2]} 27.
Bxa7 {[%clk 0:01:03.3]} 27... Bc5+ {[%clk 0:00:55.1]} 28. Bxc5 {[%clk
0:01:02.3]} 28... Rxc5 {[%clk 0:00:54.9]} 29. Ne3 {[%clk 0:00:47.4]} 29... Nb6
{[%clk 0:00:49.6]} 30. Rd6 {[%clk 0:00:41.9]} 30... Nc8 {[%clk 0:00:40.4]} 31.
Rc6 {[%clk 0:00:39.9]} 31... Rxc6 {[%clk 0:00:33.8]} 32. Bxc6 {[%clk 0:00:40.8]}
32... Rf8 {[%clk 0:00:25.9]} 33. f5 {[%clk 0:00:37.9]} 33... Ne7 {[%clk
0:00:26]} 34. Bd7 {[%clk 0:00:34]} 34... Bxd7 {[%clk 0:00:24.7]} 35. Rxd7 {[%clk
0:00:34.9]} 35... Re8 {[%clk 0:00:24.8]} 36. Nxg4 {[%clk 0:00:30.2]} 36... Kf8
{[%clk 0:00:24.4]} 37. Nh6 {[%clk 0:00:26.1]} 37... Rc8 {[%clk 0:00:19.3]} 38.
f6 {[%clk 0:00:25.9]} 38... Rc1+ {[%clk 0:00:17.8]} 39. Kf2 {[%clk 0:00:26.4]}
39... Rc2+ {[%clk 0:00:17.8]} 40. Kf3 {[%clk 0:00:27]} 40... Rc3+ {[%clk
0:00:14.3]} 41. Ke4 {[%clk 0:00:26.2]} 41... Nc6 {[%clk 0:00:07.5]} 42. Rxf7+
{[%clk 0:00:25]} 42... Ke8 {[%clk 0:00:05.9]} 43. e6 {[%clk 0:00:24.7]} 43...
Rc1 {[%clk 0:00:03.4]} 44. Rc7 {[%clk 0:00:20.5]} 44... Re1+ {[%clk 0:00:02.2]}
45. Kf5 {[%clk 0:00:18.5]} 1-0

[Event "Early-Titled-Tuesday-Blitz-January-30-2024"]
[Site "Chess.com"]
[Date "2024.01.30"]
[Round "6"]
[White "elgrona"]
[Black "vesalhamedinia"]
[Result "1-0"]
[WhiteElo "2342"]
[BlackElo "2485"]
[TimeControl "180+1"]
[EndTime "9:08:55 PST"]
[Termination "elgrona won by checkmate"]

1. Nf3 {[%clk 0:03:00.9]} 1... d5 {[%clk 0:02:59.7]} 2. b3 {[%clk 0:03:01.1]}
2... Nf6 {[%clk 0:02:58.2]} 3. Bb2 {[%clk 0:03:02]} 3... c6 {[%clk 0:02:58.7]}
4. e3 {[%clk 0:03:00.4]} 4... Bf5 {[%clk 0:02:58.9]} 5. Nh4 {[%clk 0:02:55]}
5... Bg4 {[%clk 0:02:58.3]} 6. f3 {[%clk 0:02:55.1]} 6... Bh5 {[%clk 0:02:58.5]}
7. g4 {[%clk 0:02:54.7]} 7... Bg6 {[%clk 0:02:59.2]} 8. Bg2 {[%clk 0:02:26.6]}
8... Nbd7 {[%clk 0:02:50.2]} 9. O-O {[%clk 0:02:18.2]} 9... e6 {[%clk
0:02:38.4]} 10. Nc3 {[%clk 0:01:59.4]} 10... Bd6 {[%clk 0:02:01]} 11. f4 {[%clk
0:01:41.5]} 11... Nc5 {[%clk 0:00:57.4]} 12. d3 {[%clk 0:01:22.6]} 12... Nfd7
{[%clk 0:00:41.4]} 13. Qe1 {[%clk 0:01:07.1]} 13... Be7 {[%clk 0:00:27.8]} 14.
Nxg6 {[%clk 0:00:44]} 14... hxg6 {[%clk 0:00:27.8]} 15. d4 {[%clk 0:00:42.9]}
15... Na6 {[%clk 0:00:25.2]} 16. e4 {[%clk 0:00:40.1]} 16... Qb6 {[%clk
0:00:16.8]} 17. Na4 {[%clk 0:00:34.5]} 17... Qc7 {[%clk 0:00:16.9]} 18. c4
{[%clk 0:00:27.1]} 18... dxe4 {[%clk 0:00:16.8]} 19. Qxe4 {[%clk 0:00:22.1]}
19... Nf6 {[%clk 0:00:17.3]} 20. Qf3 {[%clk 0:00:19.6]} 20... O-O-O {[%clk
0:00:15.4]} 21. a3 {[%clk 0:00:17.2]} 21... Rh4 {[%clk 0:00:14.4]} 22. h3 {[%clk
0:00:16.6]} 22... Rhh8 {[%clk 0:00:13.1]} 23. b4 {[%clk 0:00:16.8]} 23... Nd7
{[%clk 0:00:12.2]} 24. b5 {[%clk 0:00:14.9]} 24... Nab8 {[%clk 0:00:12.5]} 25.
Rac1 {[%clk 0:00:08.5]} 25... Bf6 {[%clk 0:00:12.2]} 26. Rfd1 {[%clk 0:00:08]}
26... Nb6 {[%clk 0:00:12.2]} 27. Nc5 {[%clk 0:00:07.1]} 27... g5 {[%clk
0:00:10.4]} 28. fxg5 {[%clk 0:00:06.2]} 28... Bxg5 {[%clk 0:00:11.3]} 29. Rc2
{[%clk 0:00:04.7]} 29... Bf4 {[%clk 0:00:11.1]} 30. bxc6 {[%clk 0:00:03.4]}
30... Nxc6 {[%clk 0:00:12]} 31. d5 {[%clk 0:00:03.9]} 31... exd5 {[%clk
0:00:12.1]} 32. cxd5 {[%clk 0:00:04.4]} 32... Ne5 {[%clk 0:00:10.1]} 33. Qe4
{[%clk 0:00:03.9]} 33... Ng6 {[%clk 0:00:09.1]} 34. Ne6 {[%clk 0:00:03.9]} 34...
fxe6 {[%clk 0:00:08.7]} 35. Rxc7+ {[%clk 0:00:03.3]} 35... Bxc7 {[%clk
0:00:09.6]} 36. Qxe6+ {[%clk 0:00:01.8]} 36... Kb8 {[%clk 0:00:10.1]} 37. Qxg6
{[%clk 0:00:02.7]} 37... Nc4 {[%clk 0:00:10.1]} 38. d6 {[%clk 0:00:02.6]} 38...
Bb6+ {[%clk 0:00:10.5]} 39. Kh1 {[%clk 0:00:01.2]} 39... Nxb2 {[%clk 0:00:10.8]}
40. Qxg7 {[%clk 0:00:01.8]} 40... Nxd1 {[%clk 0:00:10.8]} 41. Qxb7# {[%clk
0:00:01.7]} 1-0

[Event "Early-Titled-Tuesday-Blitz-January-30-2024"]
[Site "Chess.com"]
[Date "2024.01.30"]
[Round "6"]
[White "Quattroporte300"]
[Black "SujanaLohani"]
[Result "0-1"]
[WhiteElo "2382"]
[BlackElo "2015"]
[TimeControl "180+1"]
[EndTime "9:08:55 PST"]
[Termination "SujanaLohani won by resignation"]

1. e4 {[%clk 0:02:52.7]} 1... c5 {[%clk 0:02:27.9]} 2. Nc3 {[%clk 0:02:52.7]}
2... Nc6 {[%clk 0:02:24.9]} 3. Bb5 {[%clk 0:02:52.8]} 3... Nd4 {[%clk
0:02:20.3]} 4. Bc4 {[%clk 0:02:53.3]} 4... e6 {[%clk 0:02:02.2]} 5. Nge2 {[%clk
0:02:53.9]} 5... Nf6 {[%clk 0:01:57.6]} 6. O-O {[%clk 0:02:53.5]} 6... Be7
{[%clk 0:01:56.6]} 7. d3 {[%clk 0:02:52.5]} 7... O-O {[%clk 0:01:54.6]} 8. f4
{[%clk 0:02:45.6]} 8... d5 {[%clk 0:01:53.3]} 9. exd5 {[%clk 0:02:37.2]} 9...
exd5 {[%clk 0:01:52.7]} 10. Bb3 {[%clk 0:02:37.9]} 10... Bg4 {[%clk 0:01:48.9]}
11. h3 {[%clk 0:02:33.3]} 11... Bxe2 {[%clk 0:01:38.5]} 12. Nxe2 {[%clk
0:02:32.3]} 12... Nxb3 {[%clk 0:01:35.6]} 13. axb3 {[%clk 0:02:33.2]} 13... d4
{[%clk 0:01:34.4]} 14. Qe1 {[%clk 0:02:26.1]} 14... Nd5 {[%clk 0:01:33.1]} 15.
Qf2 {[%clk 0:02:25.7]} 15... Re8 {[%clk 0:01:31.4]} 16. Ng3 {[%clk 0:02:20.2]}
16... Bh4 {[%clk 0:01:30.1]} 17. Qf3 {[%clk 0:02:18.6]} 17... Ne3 {[%clk
0:01:26]} 18. Re1 {[%clk 0:01:52.7]} 18... Nxc2 {[%clk 0:01:23.1]} 19. Rxe8+
{[%clk 0:01:51.8]} 19... Qxe8 {[%clk 0:01:22.5]} 20. Rb1 {[%clk 0:01:38.2]}
20... Qe1+ {[%clk 0:01:12.2]} 21. Kh2 {[%clk 0:01:36.9]} 21... Rb8 {[%clk
0:01:07.1]} 22. Nf5 {[%clk 0:01:29]} 22... Bf2 {[%clk 0:01:02]} 23. Be3 {[%clk
0:01:05.1]} 23... Qxb1 {[%clk 0:00:30.9]} 24. Bxf2 {[%clk 0:01:04.6]} 24... Qxb2
{[%clk 0:00:22.5]} 25. Qg4 {[%clk 0:00:56.2]} 25... g6 {[%clk 0:00:20.6]} 26.
Ne7+ {[%clk 0:00:38.6]} 26... Kf8 {[%clk 0:00:19]} 27. Bh4 {[%clk 0:00:37.6]}
27... Ne3 {[%clk 0:00:17.4]} 28. Qf3 {[%clk 0:00:35.5]} 28... Re8 {[%clk
0:00:15.8]} 29. Qe4 {[%clk 0:00:30.5]} 29... f5 {[%clk 0:00:12.1]} 30. Qxb7
{[%clk 0:00:19.1]} 30... Qxg2+ {[%clk 0:00:10.3]} 31. Qxg2 {[%clk 0:00:17.7]}
31... Nxg2 {[%clk 0:00:10.1]} 32. Kxg2 {[%clk 0:00:05.7]} 32... Rxe7 {[%clk
0:00:10.1]} 33. Bxe7+ {[%clk 0:00:04.9]} 33... Kxe7 {[%clk 0:00:11]} 34. Kf2
{[%clk 0:00:03.8]} 34... Kd6 {[%clk 0:00:10.9]} 35. h4 {[%clk 0:00:04.1]} 35...
Kc6 {[%clk 0:00:06.8]} 36. Ke2 {[%clk 0:00:04.6]} 36... Kb5 {[%clk 0:00:06.7]}
37. Kd2 {[%clk 0:00:05.3]} 37... Kb4 {[%clk 0:00:07.1]} 38. Kc2 {[%clk
0:00:06.1]} 38... Ka3 {[%clk 0:00:07.4]} 39. Kd2 {[%clk 0:00:03.3]} 39... Kxb3
{[%clk 0:00:07.3]} 0-1

[Event "Early-Titled-Tuesday-Blitz-January-30-2024"]
[Site "Chess.com"]
[Date "2024.01.30"]
[Round "6"]
[White "Hasangatin_Ramil"]
[Black "CristianS27"]
[Result "0-1"]
[WhiteElo "2686"]
[BlackElo "2565"]
[TimeControl "180+1"]
[EndTime "9:08:57 PST"]
[Termination "CristianS27 won on time"]

1. e4 {[%clk 0:03:00.9]} 1... e5 {[%clk 0:03:00]} 2. Nf3 {[%clk 0:03:01.2]} 2...
Nc6 {[%clk 0:03:00.6]} 3. Bb5 {[%clk 0:03:01.7]} 3... a6 {[%clk 0:03:00.8]} 4.
Ba4 {[%clk 0:03:02.3]} 4... Nf6 {[%clk 0:03:01.4]} 5. Bxc6 {[%clk 0:03:02.7]}
5... dxc6 {[%clk 0:03:01.1]} 6. d3 {[%clk 0:03:03.2]} 6... Bd6 {[%clk
0:02:57.9]} 7. Bg5 {[%clk 0:03:03.6]} 7... h6 {[%clk 0:02:57.3]} 8. Bh4 {[%clk
0:03:03.9]} 8... Be6 {[%clk 0:02:52]} 9. Nbd2 {[%clk 0:03:04]} 9... g5 {[%clk
0:02:45.7]} 10. Bg3 {[%clk 0:03:02.8]} 10... Nd7 {[%clk 0:02:46.1]} 11. Qe2
{[%clk 0:03:02.4]} 11... Qe7 {[%clk 0:02:45.1]} 12. Nc4 {[%clk 0:03:01.4]} 12...
Bxc4 {[%clk 0:02:41.2]} 13. dxc4 {[%clk 0:03:02.3]} 13... f6 {[%clk 0:02:39.1]}
14. O-O-O {[%clk 0:03:00.9]} 14... O-O-O {[%clk 0:02:38.2]} 15. Nd2 {[%clk
0:03:00.2]} 15... h5 {[%clk 0:02:26.8]} 16. h4 {[%clk 0:02:58.8]} 16... g4
{[%clk 0:02:25.4]} 17. Nf1 {[%clk 0:02:58.8]} 17... Nc5 {[%clk 0:02:22]} 18. f3
{[%clk 0:02:55.6]} 18... Rhg8 {[%clk 0:02:08.2]} 19. Ne3 {[%clk 0:02:52.2]}
19... gxf3 {[%clk 0:02:03.9]} 20. Qxf3 {[%clk 0:02:53.1]} 20... Nxe4 {[%clk
0:02:01.6]} 21. Qxe4 {[%clk 0:02:46.6]} 21... Qe6 {[%clk 0:01:19.3]} 22. Qf5
{[%clk 0:02:39.3]} 22... Kd7 {[%clk 0:01:08]} 23. Rh3 {[%clk 0:02:07.1]} 23...
Qxf5 {[%clk 0:01:05.8]} 24. Nxf5 {[%clk 0:02:06.7]} 24... Ke6 {[%clk 0:01:06.7]}
25. Rf1 {[%clk 0:02:01.3]} 25... Rg4 {[%clk 0:01:04.5]} 26. b3 {[%clk
0:01:47.4]} 26... Ba3+ {[%clk 0:00:59.7]} 27. Kb1 {[%clk 0:01:47.1]} 27... Rd2
{[%clk 0:00:56.5]} 28. Rh2 {[%clk 0:01:10]} 28... Re4 {[%clk 0:00:51.7]} 29.
Ng7+ {[%clk 0:00:34]} 29... Kf7 {[%clk 0:00:51.6]} 30. Nxh5 {[%clk 0:00:34]}
30... Ree2 {[%clk 0:00:52.2]} 31. Nxf6 {[%clk 0:00:33.1]} 31... Ke6 {[%clk
0:00:44]} 32. Ng4 {[%clk 0:00:25.3]} 32... Rxc2 {[%clk 0:00:39.6]} 33. Bxe5
{[%clk 0:00:24.6]} 33... Rxa2 {[%clk 0:00:28.1]} 34. h5 {[%clk 0:00:20.3]} 34...
Rxg2 {[%clk 0:00:24.9]} 35. h6 {[%clk 0:00:20.2]} 35... Rxh2 {[%clk 0:00:17.5]}
36. Bxh2 {[%clk 0:00:16.3]} 36... Rb2+ {[%clk 0:00:16]} 37. Ka1 {[%clk
0:00:16.8]} 37... Rxb3 {[%clk 0:00:16.6]} 38. Ka2 {[%clk 0:00:15.9]} 38... Rh3
{[%clk 0:00:16.8]} 39. Rf2 {[%clk 0:00:10.4]} 39... Bc5 {[%clk 0:00:15.4]} 40.
Rg2 {[%clk 0:00:09.1]} 40... Bd4 {[%clk 0:00:14.4]} 41. Bxc7 {[%clk 0:00:08.2]}
41... b5 {[%clk 0:00:13.4]} 42. Bd8 {[%clk 0:00:04.6]} 42... b4 {[%clk
0:00:12.4]} 43. Ba5 {[%clk 0:00:04]} 43... b3+ {[%clk 0:00:12.7]} 44. Kb1 {[%clk
0:00:04]} 44... Rh1+ {[%clk 0:00:12.9]} 0-1